fUST/lending_fUST_20251214
["ID","MTS","AMOUNT","RATE_DAILY","PERIOD"]
[398463929,1765680667849,-500.0,0.00022191,2]
[398463930,1765680667858,-567.08,0.00022191,2]
[398463931,1765680667867,-500.0,0.00022191,2]
[398463932,1765680667878,-500.0,0.00022191,2]
[398463933,1765680667887,-500.0,0.00022191,2]
[398463934,1765680667897,-10691.72,0.00022191,2]
[398463935,1765680667907,-772.6,0.00022191,2]
[398463936,1765680667917,-948.09,0.00022191,2]
[398463937,1765680667926,-554.0,0.00022191,2]
[398463938,1765680667935,-500.0,0.00022191,2]
[398463939,1765680667944,-235.31089282,0.00022191,2]
[398463940,1765680667961,-849.08910718,0.00022191,2]
[398463941,1765680667971,-727.1,0.00022191,2]
[398463942,1765680667980,-500.0,0.00022191,2]
[398463943,1765680667990,-499.99579287,0.00022191,2]
[398463944,1765680667999,-500.0,0.00022191,2]
[398463945,1765680668008,-500.0,0.00022191,2]
[398463946,1765680668017,-479.12383498,0.00022191,2]
[398463947,1765680668027,-291.87040006,0.00022191,2]
[398463948,1765680668039,-208.12959994,0.00022191,2]
[398463949,1765680668048,-973.25,0.00022191,2]
[398463950,1765680668057,-500.0,0.00022191,2]
[398463951,1765680668067,-3425.59,0.00022191,2]
[398463952,1765680668076,-1076.56,0.00022191,2]
[398463953,1765680668086,-628.07,0.00022191,2]
[398463954,1765680668097,-1871.14,0.00022191,2]
[398463955,1765680668107,-1121.9,0.00022191,2]
[398463956,1765680668117,-523.29,0.00022191,2]
[398463957,1765680668126,-500.0,0.00022191,2]
[398463958,1765680668135,-500.0,0.00022191,2]
[398463959,1765680668144,-970.14,0.00022191,2]
[398463960,1765680668154,-500.0,0.00022191,2]
[398463961,1765680668163,-500.0,0.00022191,2]
[398463962,1765680668173,-1811.97,0.00022191,2]
[398463963,1765680668183,-755.67,0.00022191,2]
[398463964,1765680668192,-500.0,0.00022191,2]
[398463965,1765680668201,-1073.85,0.00022191,2]
[398463966,1765680668211,-500.0,0.00022191,2]
[398463967,1765680668223,-3674.19,0.00022191,2]
[398463968,1765680668237,-1035.64,0.00022191,2]
[398463969,1765680668254,-500.0,0.00022191,2]
[398463970,1765680668264,-500.0,0.00022191,2]
[398463971,1765680668273,-650.1,0.00022191,2]
[398463972,1765680668285,-500.0,0.00022191,2]
[398463973,1765680668296,-500.0,0.00022191,2]
[398463974,1765680668305,-500.0,0.00022191,2]
[398463975,1765680668315,-500.0,0.00022191,2]
[398463976,1765680668325,-674.98,0.00022191,2]
[398463977,1765680668335,-500.0,0.00022191,2]
[398463978,1765680668345,-2096.36,0.00022191,2]
[398463979,1765680668355,-302.01513032,0.00022191,2]
[398463980,1765680668364,-500.0,0.00022191,2]
[398463981,1765680668373,-500.0,0.00022191,2]
[398463982,1765680668382,-1540.37,0.00022191,2]
[398463983,1765680668391,-500.0,0.00022191,2]
[398463984,1765680668400,-742.55,0.00022191,2]
[398463985,1765680668409,-563.61305959,0.00022191,2]
[398463986,1765680668418,-774.56,0.00022191,2]
[398463987,1765680668427,-501.77,0.00022191,2]
[398463988,1765680668437,-505.12972321,0.00022191,2]
[398463989,1765680668446,-500.0,0.00022191,2]
[398463990,1765680668456,-1516.6,0.00022191,2]
[398463991,1765680668466,-358.5810651,0.00022191,2]
[398463992,1765680668475,-640.81,0.00022191,2]
[398463993,1765680668484,-500.0,0.00022191,2]
[398463994,1765680668494,-826.5,0.00022191,2]
[398463995,1765680668503,-2284.9,0.00022191,2]
[398463996,1765680668513,-1093.72,0.00022191,2]
[398463997,1765680668522,-500.0,0.00022191,2]
[398463998,1765680668531,-1838.74,0.00022191,2]
[398463999,1765680668541,-638.09,0.00022191,2]
[398464000,1765680668550,-630.54501699,0.00022191,2]
[398464001,1765680668812,-494.293216,0.00021054,10]
[398464002,1765680668824,-3658.116784,0.00021054,10]
[398464003,1765680668835,-302.2067323,0.0002137,2]
[398464004,1765680668845,-500.0,0.00021917,2]
[398464005,1765680668856,-3430.25498301,0.00022191,2]
[398464006,1765680668866,-1426.94,0.00022191,2]
[398464007,1765680668876,-500.0,0.00022191,2]
[398464008,1765680668886,-539.54,0.00022191,2]
[398464009,1765680668896,-501.18607223,0.00022191,2]
[398464010,1765680668907,-500.0,0.00022191,2]
[398464011,1765680668916,-500.0,0.00022191,2]
[398464012,1765680668928,-1605.81,0.00022191,2]
[398464013,1765680668937,-500.0,0.00022191,2]
[398464014,1765680668947,-500.0,0.00022191,2]
[398464015,1765680668958,-500.0,0.00022191,2]
[398464016,1765680668968,-1050.34,0.00022191,2]
[398464017,1765680668978,-632.15,0.00022191,2]
[398464018,1765680668988,-1826.56,0.00022191,2]
[398464019,1765680668998,-827.73,0.00022191,2]
[398464020,1765680669008,-569.52,0.00022191,2]
[398464021,1765680669019,-800.61,0.00022191,2]
[398464022,1765680669029,-13636.99,0.00022191,2]
[398464023,1765680669039,-2776.96,0.00022191,2]
[398464024,1765680669049,-500.0,0.00022191,2]
[398464025,1765680669058,-2158.42,0.00022191,2]
[398464026,1765680669068,-500.0,0.00022191,2]
[398464027,1765680669078,-872.89,0.00022191,2]
[398464028,1765680669088,-500.0,0.00022191,2]
[398464029,1765680669099,-500.0,0.00022191,2]
[398464030,1765680669109,-893.47,0.00022191,2]
[398464031,1765680669119,-500.0,0.00022191,2]
[398464032,1765680669129,-500.0,0.00022191,2]
[398464033,1765680669138,-1642.43,0.00022191,2]
[398464034,1765680669148,-500.0,0.00022191,2]
[398464035,1765680669157,-2548.52,0.00022191,2]
[398464036,1765680669170,-805.79,0.00022191,2]
[398464037,1765680669189,-568.19045796,0.00022191,2]
[398464038,1765680669206,-500.0,0.00022191,2]
[398464039,1765680669216,-500.0,0.00022191,2]
[398464040,1765680669225,-592.9,0.00022191,2]
[398464041,1765680669234,-2615.53,0.00022191,2]
[398464042,1765680669244,-500.0,0.00022191,2]
[398464043,1765680669255,-500.0,0.00022191,2]
[398464044,1765680669264,-500.0,0.00022191,2]
[398464045,1765680669273,-2166.4,0.00022191,2]
[398464046,1765680669283,-1604.48,0.00022191,2]
[398464047,1765680669292,-502.17658576,0.00022191,2]
[398464048,1765680669301,-500.0,0.00022191,2]
[398464049,1765680669310,-500.0,0.00022191,2]
[398464050,1765680669322,-500.0,0.00022191,2]
[398464051,1765680669331,-500.0,0.00022191,2]
[398464052,1765680669340,-505.90413983,0.00022191,2]
[398464053,1765680669349,-500.0,0.00022191,2]
[398464054,1765680669359,-500.0,0.00022191,2]
[398464055,1765680669368,-3725.43,0.00022191,2]
[398464056,1765680669378,-500.0,0.00022191,2]
[398464057,1765680669387,-500.0,0.00022191,2]
[398464058,1765680669397,-1673.29,0.00022191,2]
[398464059,1765680669406,-500.0,0.00022191,2]
[398464060,1765680669415,-500.0,0.00022191,2]
[398464061,1765680669424,-500.0,0.00022191,2]
[398464062,1765680669434,-500.0,0.00022191,2]
[398464063,1765680669443,-597.28768338,0.00022191,2]
[398464064,1765680669453,-707.61,0.00022191,2]
[398464065,1765680669463,-500.0,0.00022191,2]
[398464066,1765680669473,-500.0,0.00022191,2]
[398464067,1765680669482,-251.56902788,0.00022191,2]
[398464068,1765680669492,-689.33,0.00022191,2]
[398464069,1765680669501,-689.05,0.00022191,2]
[398464070,1765680669510,-550.04,0.00022191,2]
[398464071,1765680669519,-500.0,0.00022191,2]
[398464072,1765680669528,-724.11,0.00022191,2]
[398464073,1765680669536,-500.0,0.00022191,2]
[398464074,1765680669545,-502.29669311,0.00022191,2]
[398464075,1765680669555,-500.0,0.00022191,2]
[398464076,1765680669563,-1198.2,0.00022191,2]
[398464077,1765680669572,-500.0,0.00022191,2]
[398464078,1765680669582,-1123.36455587,0.00022191,2]
[398464079,1765680669594,-46.19544413,0.00022191,2]
[398464080,1765680669603,-784.44405587,0.00022191,2]
[398464081,1765680669614,-1188.63002315,0.00022191,2]
[398464082,1765680673028,500.0,0.00013273,2]
[398464083,1765680673157,500.0,0.00013273,2]
[398464084,1765680726766,205.7527678,0.000181,99]
[398464085,1765680784397,500.0,0.00013273,2]
[398464086,1765680843818,500.0,0.00013273,2]
[398464087,1765680903801,500.0,0.00013273,2]
[398464088,1765680904204,500.0,0.00013273,2]
[398464089,1765680966718,500.0,0.00013273,2]
[398464090,1765680967324,500.0,0.00013273,2]
[398464091,1765681000853,155.0,0.000165,59]
[398464092,1765681083214,500.0,0.00013273,2]
[398464093,1765681143211,500.0,0.00013273,2]
[398464094,1765681143243,500.0,0.00013273,2]
[398464095,1765681143388,500.0,0.00013273,2]
[398464096,1765681147067,500.0,0.00013273,2]
[398464097,1765681261598,190.0,0.000184,120]
[398464098,1765681326734,500.0,0.00013273,2]
[398464099,1765681327785,500.0,0.00013273,2]
[398464100,1765681331386,2129.0,0.000134,2]
[398464101,1765681443505,1263.0,0.000134,2]
[398464102,1765681566545,500.0,0.00013273,2]
[398464103,1765681605116,-313.72046547,0.00013697,2]
[398464104,1765681649101,-186.27953453,0.00013697,2]
[398464105,1765681649121,-321.49765174,0.00013697,2]
[398464106,1765681649144,-214.65627937,0.00013697,2]
[398464107,1765681649164,-300.0,0.00013697,2]
[398464108,1765681649186,-71.10620157,0.00013698,2]
[398464109,1765681743981,500.0,0.00013273,2]
[398464111,1765681803933,500.0,0.00013273,2]
[398464112,1765681830374,6254.0,0.00013418,2]
[398464113,1765681831846,-255.49749186,0.00013697,2]
[398464114,1765681831857,-44.50250814,0.00013697,2]
[398464115,1765681831866,-210.36315379,0.00013697,2]
[398464116,1765681831875,-428.89379843,0.00013698,2]
[398464117,1765681831884,-245.50304778,0.00013698,2]
[398464118,1765681831895,-254.49695222,0.00013698,2]
[398464119,1765681831904,-500.0,0.00013698,2]
[398464120,1765681831913,-221.23278649,0.00013698,2]
[398464162,1765681837811,-279.10748082,0.00013698,2]
[398464163,1765681837822,-151.61424994,0.00013698,2]
[398464164,1765681837832,-150.38575006,0.00013698,2]
[398464165,1765681837843,-324.13284269,0.00013698,2]
[398464166,1765681837853,-2.80649843,0.00013698,2]
[398464167,1765681837866,-497.19350157,0.00013698,2]
[398464168,1765681837876,-160.02383809,0.00013698,2]
[398464169,1765681837888,-320.80769379,0.00013698,2]
[398464170,1765681837901,-19.16846812,0.00013698,2]
[398464171,1765681837911,-500.0,0.00013698,2]
[398464172,1765681837921,-500.0,0.00013698,2]
[398464173,1765681837930,-632.64885869,0.00013698,2]
[398464174,1765681837941,-242.05436799,0.00013698,2]
[398464175,1765681837950,-154.10933784,0.00013699,2]
[398464176,1765681837962,-845.89066216,0.00013699,2]
[398464177,1765681837972,-500.0,0.00013699,2]
[398464178,1765681837982,-500.0,0.00013699,2]
[398464179,1765681837992,-500.0,0.00013699,2]
[398464180,1765681838001,-500.0,0.00013699,2]
[398464181,1765681838011,-500.0,0.00013699,2]
[398464182,1765681838022,-500.0,0.00013699,2]
[398464183,1765681838032,-500.0,0.00013699,2]
[398464184,1765681838042,-500.0,0.00013699,2]
[398464185,1765681838051,-500.0,0.00013699,2]
[398464186,1765681838061,-500.0,0.00013699,2]
[398464187,1765681838070,-500.0,0.00013699,2]
[398464188,1765681838080,-343.31198743,0.00013699,2]
[398464189,1765681838091,-156.68801257,0.00013699,2]
[398464190,1765681838101,-500.0,0.00013699,2]
[398464191,1765681838111,-500.0,0.00013699,2]
[398464192,1765681838120,-399.03234602,0.00013699,2]
[398464193,1765681838131,-100.96765398,0.00013699,2]
[398464194,1765681838140,-500.0,0.00013699,2]
[398464195,1765681838150,-500.0,0.00013699,2]
[398464196,1765681838159,-500.0,0.00013699,2]
[398464197,1765681838169,-500.0,0.00013699,2]
[398464198,1765681838178,-500.0,0.00013699,2]
[398464199,1765681838188,-500.0,0.00013699,2]
[398464200,1765681838198,-500.0,0.00013699,2]
[398464201,1765681838207,-519.3235651,0.0001382,2]
[398464202,1765681838217,-500.0,0.0001382,2]
[398464203,1765681838231,-1000.0,0.00013821,2]
[398464204,1765681838240,-1000.0,0.00013821,2]
[398464205,1765681838249,-1000.0,0.00013821,2]
[398464206,1765681838259,-1000.0,0.00013821,2]
[398464207,1765681838269,-173.8841353,0.00013821,2]
[398464208,1765681838278,-1000.0,0.00013821,2]
[398464209,1765681838288,-1000.0,0.00013821,2]
[398464210,1765681838298,-1000.0,0.00013821,2]
[398464211,1765681838308,-1000.0,0.00013821,2]
[398464212,1765681838318,-1000.0,0.00013821,2]
[398464213,1765681838327,-1000.0,0.00013821,2]
[398464214,1765681838336,-1000.0,0.00013821,2]
[398464215,1765681838346,-1000.0,0.00013821,2]
[398464216,1765681838355,-600.0,0.00013969,2]
[398464217,1765681838364,-300.0,0.00013971,2]
[398464218,1765681838374,-300.0,0.00013971,2]
[398464219,1765681838384,-300.0,0.00013971,2]
[398464220,1765681838393,-300.0,0.00013971,2]
[398464221,1765681838403,-300.0,0.00013971,2]
[398464222,1765681838412,-300.0,0.00013971,2]
[398464223,1765681838421,-300.0,0.00013971,2]
[398464224,1765681838430,-300.0,0.00013971,2]
[398464225,1765681838440,-300.0,0.00013971,2]
[398464226,1765681838450,-300.0,0.00013971,2]
[398464227,1765681838460,-300.0,0.00013971,2]
[398464228,1765681838469,-300.0,0.00013971,2]
[398464229,1765681838479,-300.0,0.00013971,2]
[398464230,1765681838489,-300.0,0.00013971,2]
[398464231,1765681838499,-300.0,0.00013971,2]
[398464232,1765681838509,-500.0,0.0001424,2]
[398464233,1765681838519,-500.0,0.0001424,2]
[398464234,1765681838528,-500.0,0.0001424,2]
[398464235,1765681838538,-182.10068744,0.0001424,2]
[398464236,1765681838548,-500.0,0.0001424,2]
[398464237,1765681838558,-500.0,0.0001424,2]
[398464238,1765681838567,-500.0,0.0001424,2]
[398464239,1765681838577,-500.0,0.0001424,2]
[398464240,1765681838586,-500.0,0.0001424,2]
[398464241,1765681838596,-500.0,0.0001424,2]
[398464242,1765681838606,-500.0,0.0001424,2]
[398464243,1765681838615,-500.0,0.0001424,2]
[398464244,1765681838625,-638.14144881,0.0001424,2]
[398464245,1765681838635,-500.0,0.0001424,2]
[398464246,1765681838645,-500.0,0.0001424,2]
[398464247,1765681838655,-500.0,0.0001424,2]
[398464248,1765681838666,-500.0,0.0001424,2]
[398464249,1765681838676,-500.0,0.0001424,2]
[398464250,1765681838686,-500.0,0.00014245,2]
[398464251,1765681838696,-239.98010675,0.00014246,2]
[398464252,1765681838708,-260.01989325,0.00014246,2]
[398464253,1765681838719,-250.40584201,0.00014247,2]
[398464254,1765681838728,-1000.0,0.00014247,2]
[398464255,1765681838738,-1000.0,0.00014247,2]
[398464256,1765681838748,-1000.0,0.00014247,2]
[398464257,1765681838758,-1000.0,0.00014247,2]
[398464258,1765681838768,-1000.0,0.00014247,2]
[398464259,1765681838777,-71.73031294,0.00014247,2]
[398464260,1765681838790,-928.26968706,0.00014247,2]
[398464261,1765681838799,-1000.0,0.00014247,2]
[398464262,1765681838808,-1000.0,0.00014247,2]
[398464263,1765681838818,-1000.0,0.00014247,2]
[398464264,1765681838828,-919.80888121,0.00014247,2]
[398464265,1765681838838,-1000.0,0.00014247,2]
[398464266,1765681838848,-1000.0,0.00014247,2]
[398464267,1765681838858,-431.19159541,0.00014247,2]
[398464268,1765681838868,-1000.0,0.00014247,2]
[398464269,1765681838878,-1000.0,0.00014247,2]
[398464270,1765681838888,-865.70369776,0.00014247,2]
[398464271,1765681838898,-1019.85871929,0.00014247,2]
[398464272,1765681838907,-1000.0,0.00014247,2]
[398464273,1765681838917,-1000.0,0.00014247,2]
[398464274,1765681838927,-1000.0,0.00014247,2]
[398464275,1765681838936,-1000.0,0.00014247,2]
[398464276,1765681838947,-222.0,0.00014368,2]
[398464277,1765681838956,-1500.0,0.00014368,2]
[398464278,1765681838966,-779.61893073,0.00014368,2]
[398464279,1765681838978,-720.38106927,0.00014368,2]
[398464280,1765681838988,-353.74656037,0.00014368,2]
[398464281,1765681838998,-1500.0,0.00014368,2]
[398464282,1765681839008,-1500.0,0.00014368,2]
[398464283,1765681839018,-1106.04583562,0.00014368,2]
[398464284,1765681839027,-1500.0,0.00014368,2]
[398464285,1765681839037,-1500.0,0.00014368,2]
[398464286,1765681839047,-1500.0,0.00014368,2]
[398464287,1765681839056,-243.03442496,0.00014368,2]
[398464288,1765681839066,-1500.0,0.00014368,2]
[398464289,1765681839075,-82.50773738,0.00014368,2]
[398464310,1765681840020,-398.076,0.00014368,2]
[398464317,1765681840076,-1048.18272121,0.00014368,2]
[398464319,1765681840086,-222.0,0.00014793,2]
[398464321,1765681840096,-500.0,0.00014794,2]
[398464323,1765681840106,-1500.0,0.00014795,2]
[398464325,1765681840115,-1500.0,0.00014795,2]
[398464327,1765681840125,-1500.0,0.00014795,2]
[398464329,1765681840135,-860.0,0.00014795,2]
[398464331,1765681840145,-204.16807257,0.00014795,2]
[398464333,1765681840156,-548.36684068,0.00014795,2]
[398464335,1765681840166,-1503.50924255,0.00014795,2]
[398464338,1765681840176,-1500.0,0.00014795,2]
[398464340,1765681840186,-1500.0,0.00014795,2]
[398464342,1765681840196,-1500.0,0.00014795,2]
[398464344,1765681840205,-1500.0,0.00014795,2]
[398464346,1765681840215,-675.09033068,0.00014795,2]
[398464348,1765681840226,-1500.86223548,0.00014795,2]
[398464350,1765681840238,-1500.0,0.00014795,2]
[398464352,1765681840248,-1500.0,0.00014795,2]
[398464354,1765681840258,-1506.66212887,0.00014795,2]
[398464356,1765681840269,-553.57672964,0.00014916,2]
[398464358,1765681840278,-495.38033785,0.00014916,2]
[398464360,1765681840288,-597.88867182,0.00014916,2]
[398464362,1765681840299,-1500.0,0.00014916,2]
[398464364,1765681840308,-1188.56513421,0.00014916,2]
[398464366,1765681840318,-1000.0,0.00014916,2]
[398464368,1765681840327,-648.76555728,0.00014916,2]
[398464385,1765681842941,-351.23444272,0.00014916,2]
[398464386,1765681842951,-1000.0,0.00014916,2]
[398464387,1765681842960,-500.0,0.00015296,2]
[398464388,1765681842969,-456.64570324,0.00015342,2]
[398464389,1765681842979,-2000.92699442,0.00015342,2]
[398464390,1765681842988,-2000.89206758,0.00015342,2]
[398464391,1765681842997,-2001.41959589,0.00015342,2]
[398464392,1765681843006,-1506.21554225,0.00015342,2]
[398464393,1765681843015,-624.04561335,0.00015342,2]
[398464394,1765681843025,-500.0,0.00015342,2]
[398464395,1765681843035,-1715.15730005,0.00015342,2]
[398464396,1765681843044,-2001.41676576,0.00015342,2]
[398464398,1765681843053,-720.0,0.00015366,2]
[398464400,1765681843062,-248.22852147,0.00015697,2]
[398464401,1765681843071,-864.0,0.00016903,2]
[398464402,1765681843081,-286.09388915,0.00017697,2]
[398464403,1765681843090,-452.84927126,0.000177,2]
[398464404,1765681843099,-452.84927125,0.000177,2]
[398464405,1765681843114,-452.84927125,0.000177,2]
[398464406,1765681843123,-475.0,0.00018516,2]
[398464407,1765681843132,-1000.0,0.00018593,10]
[398464408,1765681843141,-323.95925683,0.00019697,2]
[398464409,1765681843150,-500.0,0.00019766,2]
[398464410,1765681843160,-574.12855637,0.00019847,2]
[398464411,1765681843169,-300.0,0.0002,120]
[398464412,1765681843179,-415.0,0.00020189,2]
[398464413,1765681843188,-595.37131296,0.00020395,2]
[398464414,1765681843197,-5265.0,0.00020399,2]
[398464415,1765681843207,-5265.0,0.00020425,2]
[398464416,1765681843216,-1000.0,0.00020453,10]
[398464417,1765681843226,-244.0,0.00020453,10]
[398464418,1765681843239,-198.08824625,0.00020499,2]
[398464419,1765681843248,-1500.0,0.00020547,7]
[398464420,1765681843258,-604.3334822,0.00020548,2]
[398464421,1765681843267,-302.2067323,0.00020548,2]
[398464422,1765681843276,-301.9864813,0.00020548,2]
[398464423,1765681843285,-302.2067323,0.00020548,2]
[398464424,1765681843295,-302.2067323,0.00020548,2]
[398464425,1765681843304,-302.2067323,0.00020548,2]
[398464426,1765681843313,-302.2067323,0.00020548,2]
[398464427,1765681843322,-300.0,0.00020594,2]
[398464428,1765681843332,-3575.68,0.00020631,10]
[398464429,1765681843341,-4290.82,0.00020632,10]
[398464430,1765681843351,-8.50911007,0.00020641,2]
[398464441,1765681845935,-302.2067323,0.00020548,2]
[398464442,1765681845945,-491.49088993,0.00020641,2]
[398464443,1765681845957,-727.64351446,0.00020642,2]
[398464444,1765681845988,-3124.55595651,0.00020642,2]
[398464446,1765682410720,1536.0,0.000134,2]
[398464447,1765682532051,2331.0,0.000134,2]
[398464448,1765682650840,2399.0,0.000134,2]
[398464450,1765682772113,2471.0,0.000134,2]
[398464453,1765682835188,-203.3862768,0.00013699,2]
[398464454,1765682835208,-180.94472699,0.00013699,2]
[398464455,1765682839088,-90.97870701,0.00013699,2]
[398464456,1765682839111,-500.0,0.00013699,2]
[398464457,1765682839131,-499.84271444,0.00013699,2]
[398464458,1765682883859,1263.0,0.000134,2]
[398464459,1765683017101,5612.37496584,0.000134,2]
[398464481,1765683032348,-185.87762721,0.00013499,2]
[398464482,1765683032357,-187.26643979,0.00013499,2]
[398464483,1765683032368,-257.3066617,0.00013499,2]
[398464484,1765683032379,-55.42689851,0.00013499,2]
[398464485,1765683032388,-500.0,0.00013499,2]
[398464486,1765683032397,-251.6177224,0.00013499,2]
[398464487,1765683032415,-248.3822776,0.00013499,2]
[398464488,1765683032424,-230.12311309,0.00013499,2]
[398464489,1765683032432,-271.50870723,0.00013499,2]
[398464503,1765683038028,-228.49129277,0.00013499,2]
[398464504,1765683038037,-383.96572355,0.00013499,2]
[398464505,1765683038083,-116.03427645,0.00013499,2]
[398464506,1765683038092,-500.0,0.00013499,2]
[398464507,1765683038102,-500.0,0.00013499,2]
[398464508,1765683038112,-500.0,0.00013499,2]
[398464509,1765683038123,-500.0,0.00013499,2]
[398464510,1765683038133,-500.0,0.00013499,2]
[398464511,1765683038142,-500.0,0.00013499,2]
[398464512,1765683038152,-500.0,0.00013499,2]
[398464513,1765683038162,-552.17583419,0.00013499,2]
[398464514,1765683038172,-235.63295468,0.00013499,2]
[398464515,1765683038182,-13097.37286837,0.000135,2]
[398464516,1765683038195,-5508.53,0.000135,2]
[398464544,1765683040354,-14383.58236931,0.000135,2]
[398464548,1765683043207,-29674.85181998,0.000135,2]
[398464563,1765683259109,4910.82809511,0.000134,2]
[398464566,1765683499610,4296.97458323,0.00013399,2]
[398464568,1765683664104,1000.02,0.00013,2]
[398464569,1765683746016,3759.8527603,0.00013399,2]
[398464570,1765683778428,-317.82634403,0.00013433,2]
[398464571,1765683780495,-154.95,0.00013433,2]
[398464572,1765683781976,-165.92037864,0.00013433,2]
[398464573,1765683785806,-369.75510181,0.00013433,2]
[398464574,1765683788526,-254.70336612,0.00013433,2]
[398464575,1765683789951,-236.71399754,0.00013433,2]
[398464576,1765683791971,-264.80546106,0.00013433,2]
[398464577,1765683796231,-301.19734145,0.00013433,2]
[398464578,1765683798186,-227.80245979,0.00013433,2]
[398464579,1765683850613,1536.0,0.000134,2]
[398464580,1765683971667,2331.0,0.000134,2]
[398464581,1765683995291,3289.87116528,0.00013399,2]
[398464582,1765684048119,-213.78755893,0.00013498,2]
[398464583,1765684048141,-22.98926654,0.00013498,2]
[398464584,1765684097780,2399.0,0.000134,2]
[398464589,1765684212007,2471.0,0.000134,2]
[398464598,1765684232230,-1036.47877456,0.00013497,2]
[398464603,1765684232283,-163.52122544,0.00013497,2]
[398464605,1765684232292,-450.83279305,0.00013498,2]
[398464615,1765684235550,2878.63726962,0.00013399,2]
[398464625,1765684238257,-32.67540997,0.00013498,2]
[398464626,1765684238267,-300.0,0.00013498,2]
[398464627,1765684238276,-300.0,0.00013498,2]
[398464628,1765684238286,-548.6699711,0.00013498,2]
[398464629,1765684238297,-63.3300289,0.00013498,2]
[398464630,1765684238307,-440.99015415,0.00013499,2]
[398464631,1765684238319,-1224.82266252,0.00013499,2]
[398464632,1765684238331,-540.61021453,0.00013499,2]
[398464633,1765684238350,-1031.999995,0.00013499,2]
[398464634,1765684238366,-30889.93611829,0.00013499,2]
[398464635,1765684238376,-500.0,0.00013499,2]
[398464636,1765684238385,-300.0,0.00013499,2]
[398464637,1765684238394,-500.0,0.00013499,2]
[398464638,1765684238403,-500.0,0.00013499,2]
[398464639,1765684238412,-500.0,0.00013499,2]
[398464640,1765684238421,-400.0,0.00013499,2]
[398464641,1765684238431,-361.09667648,0.00013499,2]
[398464642,1765684238439,-80735.54846468,0.000135,2]
[398464643,1765684238449,-1000.0,0.000135,7]
[398464644,1765684238458,-642.5365475,0.00013574,2]
[398464645,1765684238467,-236.77682547,0.00013673,2]
[398464646,1765684238475,-500.0,0.00013698,2]
[398464647,1765684238484,-500.0,0.00013698,2]
[398464648,1765684238493,-500.0,0.00013698,2]
[398464649,1765684238502,-642.79301768,0.00013698,2]
[398464650,1765684238511,-603.02277658,0.00013698,2]
[398464651,1765684238519,-64778.8382617,0.00013699,2]
[398464652,1765684238528,-1000.0,0.00013699,2]
[398464653,1765684238538,-286.31748337,0.00013699,2]
[398464654,1765684238547,-500.0,0.00013699,2]
[398464655,1765684238557,-522.7378805,0.00013699,2]
[398464656,1765684238566,-300.0,0.00013769,2]
[398464657,1765684238576,-300.0,0.00013769,2]
[398464658,1765684238585,-300.0,0.00013769,2]
[398464659,1765684238594,-300.0,0.00013769,2]
[398464660,1765684238603,-300.0,0.00013769,2]
[398464661,1765684238612,-300.0,0.00013769,2]
[398464662,1765684238622,-300.0,0.00013769,2]
[398464663,1765684238631,-300.0,0.00013769,2]
[398464664,1765684238639,-300.0,0.00013769,2]
[398464665,1765684238648,-300.0,0.00013769,2]
[398464666,1765684238658,-300.0,0.00013769,2]
[398464667,1765684238667,-300.0,0.00013769,2]
[398464668,1765684238677,-300.0,0.00013769,2]
[398464669,1765684238686,-300.0,0.00013769,2]
[398464670,1765684238695,-300.0,0.00013769,2]